Cogmind - Beta 14 @@@ ROGUE MODE // 2025.03.15 @ 23:26:09 Player: Zaros426 Result: Destroyed by B-75 Beast with Heavy Plasma Cannon Performance ------------- Evolutions (2) 1000 Regions Visited (8) 1600 Robots Destroyed (189) 945 Value Destroyed (4511) 4511 Prototype IDs (49) 980 Alien Tech Used (0) 0 Bonus (2066) 2066 TOTAL SCORE: 11102 Bonus ------- High Alert Combat Kills 778 Follower Combat Kills 425 Entered Garrisons 200 Used RIF Installer 500 Aligned with FarCom 300 Friendly Fire -137 Cogmind --------- Core Integrity 0/550 Matter 250/300 Energy 76/275 System Corruption 3% Temperature Cool (12) Movement Treading (240) Ox1 Location -8/Garrison Parts ------- > --- POWER (1) -------- Deuterium Engine > --- PROPULSION (2) --- Medium Treads Medium Treads > --- UTILITY (3) ------ Experimental Heat Sink Huge Storage Unit Relay Coupler [Sentry] (9) > --- WEAPON (5) ------- Tesla Rifle Power Maul Longsword +1 > --- INVENTORY (25) --- Large Battery (200) High-capacity Matter Pod (200) Trap Scanner Experimental Sensor Array Improved Terrain Scanner Advanced Terrain Scan Processor Seismic Detector Transport Network Coupler Recoil Stabilizer Advanced ECM Suite Authchip [R/NC] Authchip [R/Combat] Authchip [R/Combat] Authchip [Device] Relay Coupler [NC] (23) Relay Coupler [Duelist] (26) Supersonic Drone Bay (1/1) PSU Rigger AS-neutralizer No. 17b Improved Datajack Plasma Cutter Peak State ------------ > --- POWER ------------ Reinforced Fission Core > --- PROPULSION ------- Medium Treads Medium Treads > --- UTILITY ---------- Experimental Heat Sink Huge Storage Unit Relay Coupler [Sentry] > --- WEAPON ----------- Tesla Rifle Improved Datajack Power Maul Longsword +1 > --- INVENTORY -------- Deuterium Engine Medium Treads Medium Treads Large Battery High-capacity Matter Pod Trap Scanner Experimental Sensor Array Improved Terrain Scanner Advanced Terrain Scan Processor Seismic Detector Transport Network Coupler Recoil Stabilizer Advanced ECM Suite Authchip [R/NC] Authchip [R/Combat] Authchip [R/Combat] Authchip [Device] Relay Coupler [NC] Relay Coupler [Duelist] Supersonic Drone Bay PSU Rigger AS-neutralizer No. 17b Plasma Cutter [Rating: 55] Favorites ----------- Power Heavy Ion Engine Engine Heavy Ion Engine Power Core Reinforced Fission Core Propulsion Armored Wheel Treads Light Treads Wheel Armored Wheel Utility Huge Storage Unit Device Heat Sink Storage Huge Storage Unit Processor Advanced Visual Processing Unit Hackware Hacking Suite Protection Heavy Armor Plating Weapon Minigun Energy Gun Lightning Gun Energy Cannon Beam Cannon Ballistic Gun Minigun Ballistic Cannon Light Cannon Launcher Grenade Launcher Impact Weapon Power Maul Slashing Weapon Longsword +1 Special Melee Weapon Datajack Build | -11 -10 -10 -9 -9 -9 -8 -8 -8 ------- Run | Yrd Mat Min Mat Min Exi Min Mat Gar Slots Evolved 4 | . . . 2 . . . 2 . Power . | . . . . . . . . . Propulsion . | . . . . . . . . . Utility 1 | . . . 1 . . . . . Weapon 3 | . . . 1 . . . 2 . Parts Attached 122 | 6 15 6 35 2 10 4 36 8 Power 11 | 1 1 4 2 . . 1 1 1 Engine 10 | 1 1 4 2 . . 1 . 1 Core 1 | . . . . . . . 1 . Reactor . | . . . . . . . . . Propulsion 19 | 2 3 . 6 . 1 . 5 2 Treads 8 | 2 1 . 1 . . . 2 2 Leg . | . . . . . . . . . Wheel 11 | . 2 . 5 . 1 . 3 . Hover . | . . . . . . . . . Flight . | . . . . . . . . . Utility 33 | 1 5 2 11 . 4 2 7 1 Device 19 | . 2 2 5 . 3 1 6 . Storage 6 | 1 3 . 2 . . . . . Processor 1 | . . . . . . 1 . . Hackware 2 | . . . . . . . 1 1 Protection 5 | . . . 4 . 1 . . . Artifact . | . . . . . . . . . Weapon 59 | 2 6 . 16 2 5 1 23 4 Energy Gun 11 | 1 1 . 1 . . . 7 1 Energy Cannon 3 | . 1 . . . . . 2 . Ballistic Gun 25 | 1 1 . 12 1 2 1 7 . Ballistic Cannon 4 | . 1 . . . . . 3 . Launcher 4 | . 2 . 1 1 . . . . Special Weapon . | . . . . . . . . . Impact Weapon 1 | . . . . . . . . 1 Slashing Weapon 9 | . . . 2 . 2 . 4 1 Piercing Weapon . | . . . . . . . . . Special Melee Weapon 2 | . . . . . 1 . . 1 Unidentified Prototypes 8 | . . 1 2 . . . 5 . Parts Lost 25 | . 3 . 1 . 4 1 13 3 Power 3 | . 1 . . . . 1 . 1 Propulsion 5 | . . . . . 1 . 2 2 Utility 3 | . . . . . 2 . 1 . Weapon 14 | . 2 . 1 . 1 . 10 . Highest Loss Streak 4 | . 1 . 1 . 4 1 3 3 To Critical Strikes . | . . . . . . . . . Average Slot Usage (%) 92 | . 93 99 94 88 87 99 94 56 Engine 9 | . 12 14 11 11 11 10 2 . Core 1 | . . . . . . . 6 9 Treads 4 | . 17 14 2 . . . . 18 Wheel 17 | . 10 14 19 22 21 22 17 . Device 7 | . 11 13 8 . 1 12 7 9 Storage 11 | . 12 14 11 11 11 11 9 9 Processor 2 | . . . . . . 9 6 . Protection 4 | . . . 9 11 9 . . . Energy Gun 4 | . 13 . . . . . 15 1 Energy Cannon 3 | . 10 14 3 . . . . . Ballistic Gun 18 | . 1 . 24 32 15 31 19 . Ballistic Cannon 2 | . . 14 3 . . . 3 . Slashing Weapon 2 | . . . . . 13 1 1 4 Peak Build Rating 55 | 6 12 18 29 29 42 42 53 55 Average Rating 26 | 5 9 10 22 28 32 37 45 38 On Entrance 21 | . 6 10 10 29 29 42 37 31 Naked Turns . | . . . . . . . . . Heaviest Build 127 | 13 89 52 112 112 112 100 127 113 Greatest Support 56 | 40 40 16 24 24 24 24 56 56 Greatest Overweight (x) 8 | 2 5 3 8 4 4 4 8 2 Average Overweight (x) 3 | . 2 3 3 4 3 3 4 1 Largest Inventory Capacity 25 | 8 25 20 25 25 25 25 25 25 Average Capacity 23 | 7 18 20 24 25 25 25 25 25 Most Carried 25 | 5 20 20 25 25 25 25 25 25 Average Carried 21 | 3 12 19 23 24 23 25 24 23 Final Capacity 25 | 8 20 20 25 25 25 25 25 25 Final Carried 25 | 5 20 19 25 25 25 25 23 21 Class Distribution -------------------- 43% | Mutant 29% | Tank 20% | Skirmisher 5% | Scavenger-Tank Dominant Class ---------------- Mutant | -10/Materials Mutant | -10/Mines Tank | -9/Materials Tank | -9/Mines Mutant | -9/Exiles Skirmisher | -8/Mines Skirmisher | -8/Materials Mutant | -8/Garrison Resources | -11 -10 -10 -9 -9 -9 -8 -8 -8 ----------- Run | Yrd Mat Min Mat Min Exi Min Mat Gar Matter Collected 4559 | 283 394 129 1224 362 90 443 1602 32 Remotely . | . . . . . . . . . Salvage Created 7278 | 193 831 151 1846 575 221 740 2664 57 Parts 388 | 19 54 6 114 17 2 35 138 3 Haulers Intercepted 11 | . 2 . 5 . . . 4 . Recyclers Shooed 5 | 1 1 . 1 2 . . . . Parts Field Recycled . | . . . . . . . . . Retrieved Matter . | . . . . . . . . . Parts Self-Destructed . | . . . . . . . . . Prevented . | . . . . . . . . . Kills | -11 -10 -10 -9 -9 -9 -8 -8 -8 ------- Run | Yrd Mat Min Mat Min Exi Min Mat Gar Combat Hostiles Destroyed 112 | . 16 2 25 9 8 15 36 1 Melee 10 | . . . . . 8 . 1 1 Guns 76 | . 5 . 16 7 . 15 33 . Cannons 12 | . 5 2 4 . . . 1 . AOE 12 | . 5 . 5 2 . . . . Classes Destroyed 15 | 2 7 . 3 2 . . 1 . Worker 20 | . 3 1 6 1 . 3 6 . Builder 8 | . 2 . 4 . . . 2 . Tunneler 10 | 6 . . 2 . . 1 1 . Hauler 11 | . 2 . 5 . . . 4 . Recycler 19 | 1 2 1 3 6 . . 6 . Mechanic 2 | . . . 2 . . . . . Operator 5 | . 1 . 2 . . . 2 . Watcher 12 | . 3 . 5 . . . 4 . Swarmer 21 | . 6 . 1 4 . 3 7 . Grunt 60 | . 10 2 17 . . 11 20 . Brawler 4 | . . . 1 . . 1 2 . Duelist 1 | . . . . . . . 1 . Sentry 14 | . . . 7 . . . 6 1 Demolisher 1 | . . . . 1 . . . . Assembled 11 | . . . . 4 7 . . . Best Kill Streak 13 | 3 6 2 8 6 6 5 13 1 Combat Bots Only 9 | . 3 2 7 4 6 3 9 1 Max Kills in Single Turn 4 | 1 4 1 3 2 1 2 2 1 Gunslinging 1 | . . . . 1 . 1 1 . Exploded 2 | . 2 . 2 1 . . . . Melee 1 | . . . . . 1 . 1 1 Uniques/NPCs Destroyed 1 | . . . . . 1 . . . 8R-AWN (-9/Exiles) Combat | -11 -10 -10 -9 -9 -9 -8 -8 -8 -------- Run | Yrd Mat Min Mat Min Exi Min Mat Gar Hostile Shots Fired 538 | . 66 9 105 24 57 40 215 22 Missed 160 | . 23 4 35 4 8 12 73 1 Damage Taken 5779 | . 557 81 981 376 765 406 2155 458 Core 996 | . 57 . 110 66 121 70 375 197 Absorbed by Shields 301 | . . . 83 . 66 . 152 . Regen/Repaired (Parts) 428 | . 113 . 246 . . . 69 . Core Remaining (%) 61 | 100 . 77 . . . 8 . . Volleys Fired 370 | 25 61 16 108 29 . 34 96 1 Largest 5 | 2 2 2 3 3 . 3 5 1 Hottest 243 | 70 110 95 133 75 . 75 243 65 Shots Fired 1092 | 48 113 32 313 77 . 102 406 1 Gun 852 | 48 64 . 204 73 . 102 360 1 Cannon 228 | . 45 32 105 . . . 46 . Launcher 12 | . 4 . 4 4 . . . . Special . | . . . . . . . . . Kinetic 758 | 23 5 16 249 73 . 102 290 . Thermal 227 | 25 90 16 60 . . . 36 . Explosive 12 | . 4 . 4 4 . . . . Electromagnetic 95 | . 14 . . . . . 80 1 Robot Hit Streak 17 | 7 9 6 17 7 . 11 8 . Robot Miss Streak 10 | 6 3 5 5 3 . 3 10 3 Penetration Max 2 | . . . . . . . 2 . Secondary Targets 13 | . 1 . 2 2 . 3 5 . Max Gunslinging Chain 1 | . 1 . 1 1 . 1 1 . Shots Hit Robots 658 | 26 73 15 181 41 41 66 208 7 Core Hits 297 | 11 40 5 74 24 12 34 96 1 Critical Kills 5 | . 1 . . . . . 4 . Critical Parts Destroyed 13 | . . . 2 . . . 11 . Critical Strikes 31 | 1 5 1 2 . 3 . 19 . Burn 6 | 1 4 . . . . . 1 . Meltdown 1 | . 1 . . . . . . . Destroy 17 | . . . 2 . . . 15 . Blast 2 | . . 1 . . . . 1 . Corrupt 2 | . . . . . . . 2 . Sever 3 | . . . . . 3 . . . Melee Attacks 94 | . . . 6 . 64 2 12 10 Impact . | . . . . . . . . . Slashing 87 | . . . 6 . 60 2 12 7 Piercing . | . . . . . . . . . Sneak Attacks 10 | . . . 3 . 4 2 1 . Combat Hostiles . | . . . . . . . . . Follow-up Attacks 3 | . . . . . 3 . . . Damage Inflicted 14300 | 283 1627 257 3787 874 1763 1305 4072 332 Guns 8011 | 283 513 . 2009 681 . 1124 3386 15 Cannons 2306 | . 472 257 1011 . . . 566 . Explosions 1474 | . 642 . 580 193 . . . 59 Melee 2509 | . . . 187 . 1763 181 120 258 Ramming . | . . . . . . . . . Kinetic 7057 | 96 63 152 2376 681 . 1124 2565 . Thermal 2267 | 187 904 105 644 . . . 368 59 Explosive 1313 | . 540 . 580 193 . . . . Electromagnetic 1154 | . 120 . . . . . 1019 15 Impact . | . . . . . . . . . Slashing 2509 | . . . 187 . 1763 181 120 258 Piercing . | . . . . . . . . . Highest Corruption 3 | . 2 2 . . . . 3 3 Average Corruption 2 | . 1 2 . . . . 3 3 Corruption Purged . | . . . . . . . . . Corruption Blocked . | . . . . . . . . . Effects 37 | . 13 9 . . . . 11 4 Message Errors 11 | . 3 2 . . . . 4 2 Matter Fused 6 | . 1 3 . . . . . 2 Heat Flow Errors 4 | . 3 . . . . . 1 . Energy Discharges 6 | . 2 2 . . . . 2 . Data Loss (minor) 6 | . 2 1 . . . . 3 . Data Loss (major) 2 | . 1 1 . . . . . . Misfires 1 | . 1 . . . . . . . Alerts 1 | . . . . . . . 1 . Overload Shots . | . . . . . . . . . Overflow Damage 224 | . 38 . 99 . 58 . . 29 Projectiles 7 | . . . 7 . . . . . Explosions 38 | . 38 . . . . . . . Melee 179 | . . . 92 . 58 . . 29 Knockbacks 15 | . . 6 3 . . . 6 . Impact . | . . . . . . . . . Kinetic 14 | . . 5 3 . . . 6 . Secondary 1 | . . 1 . . . . . . Self-Inflicted Damage 203 | . 64 . 113 . . . . 26 Shots 6 | . 4 . 1 . . . . 1 Rammed . | . . . . . . . . . Targets Rammed . | . . . . . . . . . Kicked . | . . . . . . . . . Crushed . | . . . . . . . . . Highest Temperature 351 | 40 313 69 288 198 9 9 351 . Average Temperature 84 | 17 107 20 60 62 5 5 116 . Received Heat Transfer 2177 | . 180 45 414 . 140 207 1080 111 Effects 5 | . 2 . . . . . 3 . Energy Bleed 5 | . 2 . . . . . 3 . Siege Activations . | . . . . . . . . . Robots Corrupted 1 | . . . . . . . 1 . Combat Hostiles 1 | . . . . . . . 1 . Parts Fried . | . . . . . . . . . Impact Corruptions . | . . . . . . . . . Robots Melted 1 | . 1 . . . . . . . Combat Hostiles 1 | . 1 . . . . . . . Parts Melted 6 | . 5 . . . . . 1 . Heat Transferred 5565 | 629 2481 222 1295 . . . 888 50 Parts Sabotaged . | . . . . . . . . . Parts Stolen . | . . . . . . . . . Parts Stripped . | . . . . . . . . . Power Chain Reactions 2 | . 1 . . . . . . 1 Alert | -11 -10 -10 -9 -9 -9 -8 -8 -8 ------- Run | Yrd Mat Min Mat Min Exi Min Mat Gar Peak Influence 1109 | 35 320 221 1109 540 . 210 1100 819 Initial 715 | . 22 93 7 420 . . 3 715 Average 436 | 19 183 68 742 413 . 66 582 751 Maximum Alert Level 4 | . 1 1 4 2 . 1 4 3 Low Security (%) 31 | 100 52 96 4 . . 96 4 . Level 1 20 | . 47 3 11 41 . 3 21 . Level 2 18 | . . . 17 58 . . 35 . Level 3 28 | . . . 66 . . . 37 100 Level 4 . | . . . . . . . . . Level 5 . | . . . . . . . . . High Security . | . . . . . . . . . Max Security . | . . . . . . . . . Squads Dispatched 20 | . 4 . 8 . . . 8 . Investigation 13 | . 3 . 6 . . . 4 . Extermination . | . . . . . . . . . Reinforcement 4 | . 1 . 1 . . . 2 . Assault 3 | . . . 1 . . . 2 . Garrison . | . . . . . . . . . Intercept . | . . . . . . . . . Searches Triggered . | . . . . . . . . . Construction Impeded . | . . . . . . . . . Haulers Reinforced . | . . . . . . . . . Active Scanning Responses . | . . . . . . . . . Cargo Convoy Interrupts . | . . . . . . . . . Stealth | -11 -10 -10 -9 -9 -9 -8 -8 -8 --------- Run | Yrd Mat Min Mat Min Exi Min Mat Gar Distress Signals 8 | . 2 . 1 . . . 5 . Communications Jammed . | . . . . . . . . . Distress Signals . | . . . . . . . . . Times Spotted 188 | . 25 2 54 10 8 14 71 4 Peak Tracking Total 9 | . 4 2 5 4 9 3 9 3 Tactical Retreats 16 | . 3 . 2 . . . 11 . Traps | -11 -10 -10 -9 -9 -9 -8 -8 -8 ------- Run | Yrd Mat Min Mat Min Exi Min Mat Gar Traps Triggered 3 | . 3 . . . . . . . Indirectly . | . . . . . . . . . Trap Hack Attempts . | . . . . . . . . . Triggered . | . . . . . . . . . Disarmed . | . . . . . . . . . Reprogrammed . | . . . . . . . . . Reused . | . . . . . . . . . Traps Extracted . | . . . . . . . . . Installed 1 | . . . . 1 . . . . Triggered 1 | . 1 . . . . . . . Objects Rigged 1 | . . . . . . . 1 . Exploded 1 | . . . . . . . 1 . Machines | -11 -10 -10 -9 -9 -9 -8 -8 -8 ---------- Run | Yrd Mat Min Mat Min Exi Min Mat Gar Machines Disabled 20 | . 1 3 4 . 4 . 7 1 Max in Single Turn 3 | . 1 3 1 . 1 . 2 1 Garrison Relay 1 | . . . . . . . . 1 Machines Repaired . | . . . . . . . . . Machines Dismantled . | . . . . . . . . . Machines Sabotaged . | . . . . . . . . . Overloaded Fab Kills . | . . . . . . . . . Hacking | -11 -10 -10 -9 -9 -9 -8 -8 -8 --------- Run | Yrd Mat Min Mat Min Exi Min Mat Gar Machines Accessed 40 | . 10 . 16 . 2 . 11 1 Terminals 24 | . 7 . 11 . . . 5 1 Fabricators . | . . . . . . . . . Repair Stations 3 | . 1 . 1 . . . 1 . Recycling Units 6 | . 2 . 2 . . . 2 . Scanalyzers 4 | . . . 2 . . . 2 . Garrison Access 1 | . . . . . . . 1 . Total Hacks 139 | . 27 . 68 . 2 . 40 2 Successful 92 | . 15 . 49 . 2 . 25 1 Failed 46 | . 12 . 18 . . . 15 1 Catastrophic 8 | . . . 5 . . . 3 . Database Lockouts 1 | . . . 1 . . . . . Manual 79 | . 18 . 39 . 1 . 21 . Terminals 87 | . 21 . 44 . . . 20 2 Fabricators . | . . . . . . . . . Repair Stations 11 | . 3 . 6 . . . 2 . Recycling Units 7 | . 3 . 2 . . . 2 . Scanalyzers 30 | . . . 16 . . . 14 . Garrison Access 2 | . . . . . . . 2 . Terminal Hacks 22 | . 5 . 12 . 2 . 2 1 Record 4 | . . . 3 . 1 . . . Robot Schematic 2 | . 2 . . . . . . . Robot Analysis 1 | . . . 1 . . . . . Prototype ID Bank 2 | . 1 . . . . . 1 . Emergency Access Points 1 | . . . . . . . . 1 Terminal Index 2 | . . . 1 . . . 1 . Recycling Unit Index 1 | . . . 1 . . . . . Scanalyzer Index 1 | . . . 1 . . . . . Locate Traps 2 | . 1 . 1 . . . . . Dispatch Records 1 | . . . 1 . . . . . Zone Layout 4 | . 1 . 3 . . . . . Derelict Proto ID Bank 1 | . . . . . 1 . . . Fabricator Hacks . | . . . . . . . . . Repair Station Hacks 10 | . 2 . 6 . . . 2 . Scan Component 5 | . 1 . 3 . . . 1 . Repair 5 | . 1 . 3 . . . 1 . Recycling Unit Hacks . | . . . . . . . . . Scanalyzer 24 | . . . 13 . . . 11 . Insert Component 11 | . . . 6 . . . 5 . Analyze 13 | . . . 7 . . . 6 . Garrison Access Hacks 1 | . . . . . . . 1 . Unlock Access 1 | . . . . . . . 1 . Unauthorized Hacks 35 | . 8 . 18 . . . 9 . Terminals 25 | . 6 . 14 . . . 5 . Track 1 | . . . 1 . . . . . Botnet 5 | . 1 . 3 . . . 1 . Disrupt 3 | . . . 2 . . . 1 . Skim 16 | . 5 . 8 . . . 3 . Fabricators . | . . . . . . . . . Repair Stations . | . . . . . . . . . Recycling Units 6 | . 2 . 2 . . . 2 . Tunnel 6 | . 2 . 2 . . . 2 . Scanalyzers 4 | . . . 2 . . . 2 . Extract 4 | . . . 2 . . . 2 . Garrison Access . | . . . . . . . . . Data Cores Recovered 1 | . . . 1 . . . . . Used . | . . . . . . . . . Hacking Detections 31 | . 8 . 14 . . . 9 . Full Trace Events 3 | . . . 3 . . . . . Feedback Events . | . . . . . . . . . Feedback Blocked . | . . . . . . . . . Robot Schematics Acquired 2 | . 2 . . . . . . . Robots Built . | . . . . . . . . . Authchips . | . . . . . . . . . Time . | . . . . . . . . . Total Robot Build Rating . | . . . . . . . . . Part Schematics Acquired 24 | . . . 13 . . . 11 . Parts Built . | . . . . . . . . . Authchips . | . . . . . . . . . Time . | . . . . . . . . . Total Part Build Rating . | . . . . . . . . . Parts Repaired 5 | . 1 . 3 . . . 1 . Time 141 | . 13 . 96 . . . 32 . Parts Recycled . | . . . . . . . . . Recycled Matter . | . . . . . . . . . Retrieved Matter . | . . . . . . . . . Retrieved Components . | . . . . . . . . . Parts Scanalyzed 11 | . . . 6 . . . 5 . Part Schematics Acquired 11 | . . . 6 . . . 5 . Parts Damaged . | . . . . . . . . . Bothacking | -11 -10 -10 -9 -9 -9 -8 -8 -8 ------------ Run | Yrd Mat Min Mat Min Exi Min Mat Gar Used RIF Installer 1 | . . . . . . . . 1 Robots Hacked 6 | . . . . . 4 . . 2 Non-combat 3 | . . . . . 3 . . . Combat 3 | . . . . . 1 . . 2 Robot Hacks Applied 6 | . . . . . 4 . . 2 parse_system 4 | . . . . . 4 . . . overwrite_iff 2 | . . . . . . . . 2 Relay Couplers Released 3 | . . . . . . . . 3 Machine Destruction 3 | . . . . . . . . 3 Attached 1 | . . . . . . . . 1 Fabnet Peak Effective % . | . . . . . . . . . Robots Rewired . | . . . . . . . . . Allies Hacked . | . . . . . . . . . Hacks Repelled . | . . . . . . . . . Allies | -11 -10 -10 -9 -9 -9 -8 -8 -8 -------- Run | Yrd Mat Min Mat Min Exi Min Mat Gar Total Allies 8 | . . 5 . 1 . . . 2 Largest Group 5 | . . 5 5 1 . . . 1 Highest-Rated Group 82 | . . 82 82 31 . . . 15 Highest-Rated Ally 31 | . . 31 31 31 . . . 15 Total Orders . | . . . . . . . . . Ally Attacks 84 | . . . 81 . . . . 3 Total Damage 962 | . . . 870 . . . . 92 Kills 18 | . . . 18 . . . . . Allies Corrupted . | . . . . . . . . . Allies Melted . | . . . . . . . . . Intel | -11 -10 -10 -9 -9 -9 -8 -8 -8 ------- Run | Yrd Mat Min Mat Min Exi Min Mat Gar Robot Analysis Total 1 | . . . 1 . . . . . Derelict Logs Recovered 4 | . . 2 . 2 . . . . Drone Launches . | . . . . . . . . . Drone Recoveries . | . . . . . . . . . Exploration | -11 -10 -10 -9 -9 -9 -8 -8 -8 ------------- Run | Yrd Mat Min Mat Min Exi Min Mat Gar Turns Passed 10396 | 305 1465 778 2593 1035 1288 881 1821 230 Spaces Moved 5393 | 148 767 482 1232 623 751 516 792 82 Core 15 | 15 . . . . . . . . Treads 380 | 133 145 . . . . . 20 82 Legs . | . . . . . . . . . Wheels 4998 | . 622 482 1232 623 751 516 772 . Hover . | . . . . . . . . . Flight . | . . . . . . . . . Fastest Speed 50 | 50 130 145 145 150 135 135 150 240 Average Speed 153 | 149 155 145 152 150 149 149 156 240 Slowest Speed 320 | 160 320 145 210 150 150 150 240 320 Overloaded Moves . | . . . . . . . . . Propulsion Burnouts . | . . . . . . . . . Robots Hopped . | . . . . . . . . . Cave-ins Triggered . | . . . . . . . . . Exploration Rate (%) 71 | 7 98 93 96 98 65 100 66 22 Regions Visited 8 Branch Regions 4 Pre-discovered Areas 11 | . 3 1 3 1 1 . 2 . Known Exits Taken 3 | . . 1 . . . 1 1 . Unknown Exits Taken 5 | 1 1 . 1 1 1 . . . Scrap Searched 3 | . . 1 . 1 . 1 . . Spaces Dug 13 | . . . 3 . . . 10 . Terrain Destroyed 170 | . 34 9 51 42 . . 30 4 Melee 12 | . . . 3 . . . 9 . Projectile 21 | . . . . . . . 21 . AOE 137 | . 34 9 48 42 . . . 4 Terrain Rammed . | . . . . . . . . . Walls Destroyed . | . . . . . . . . . Machines Disabled . | . . . . . . . . . Actions | -11 -10 -10 -9 -9 -9 -8 -8 -8 --------- Run | Yrd Mat Min Mat Min Exi Min Mat Gar Total 6718 | 186 924 530 1721 678 861 566 1145 107 Wait 538 | 2 54 18 259 20 17 8 159 1 Move 5386 | 147 766 481 1231 622 750 515 792 82 Hop . | . . . . . . . . . Pick Up 108 | 6 21 3 36 2 16 1 19 4 Fast Attach 41 | 5 4 1 10 . 1 2 17 1 Attach 32 | 1 5 1 3 . 6 . 9 7 Detach 7 | . 1 1 1 . . . 3 1 Swap 50 | . 6 4 22 2 3 2 11 . Drop 97 | . 6 5 45 2 11 2 26 . Fire 370 | 25 61 16 108 29 . 34 96 1 Melee 87 | . . . 6 . 57 2 12 10 Ram . | . . . . . . . . . Kick . | . . . . . . . . . Crush . | . . . . . . . . . Escape Stasis . | . . . . . . . . . Rewire . | . . . . . . . . . Trap 2 | . . . . 1 . . 1 . Miscellaneous . | . . . . . . . . . Route ------- -11/Scrapyard -10/Materials (discovered 6 exits: *Mat x3 / [*Min x2] / Sub) -10/Mines (discovered 2 exits: *Mat x2) -9/Materials (discovered 4 exits: *Mat x3 / [*Min]) -9/Mines (discovered 3 exits: *Mat x2 / *Exi) -9/Exiles -8/Mines (discovered 2 exits: *Mat x2) -8/Materials (discovered 3 exits: [*Fac] / Sto / Gar) -8/Garrison History --------- Turn | Location | Event 10 | -11/Scrapyard | Discovered new exit (range 16) 306 | -11/Scrapyard | Entered Materials 307 | -10/Materials | Build established: Mutant 599 | -10/Materials | Discovered new exit (range 7) 990 | -10/Materials | Discovered new exit (range 16) 1140 | -10/Materials | Repaired Lgt. Treads 1193 | -10/Materials | Discovered new exit (range 7) 1320 | -10/Materials | Learned location of 2 exits from Subcaves 1386 | -10/Materials | Discovered new exit (range 7) 1391 | -10/Materials | Learned location of Storage (-8) 1453 | -10/Materials | Learned 4 Recycling zone layouts 1504 | -10/Materials | Identified exit to Materials 1545 | -10/Materials | Identified exit to Subcaves 1545 | -10/Materials | Learned location of 1 exit from Materials 1595 | -10/Materials | Learned location of 2 exits from Subcaves 1656 | -10/Materials | Learned 2 Mines zone layouts 1771 | -10/Materials | Entered Mines 1888 | -10/Mines | Learned Materials garrison access intel 1951 | -10/Mines | Found a damaged Exp. Sensor Array with a note attached 1965 | -10/Mines | Found Prototype Device 1966 | -10/Mines | Identified Exp. Sensor Array 2072 | -10/Mines | Assisted by bots powering up and referring to "LRC-V3" 2321 | -10/Mines | Learned Materials trap positions 2549 | -10/Mines | Entered Materials 2549 | -9/Materials | Accompanied by 5 allies 2549 | -9/Materials | Evolved 2 slots: Utility x1, Weapon x1 2550 | -9/Materials | Identified exit to Materials 2551 | -9/Materials | Loaded intel: 16 trap records 2555 | -9/Materials | Led the pair of lost Derelicts to an unsafe place 2905 | -9/Materials | Discovered exit to Materials (range 4) 3113 | -9/Materials | Build established: Scavenger-Tank 3606 | -9/Materials | Discovered new exit (range 14) 3656 | -9/Materials | Discovered exit to Materials (range 16) 3703 | -9/Materials | Repaired Hvy. Assault Rifle 3736 | -9/Materials | Repaired Hrd. Light Armor Plating 3770 | -9/Materials | Repaired Hvy. Assault Rifle 3860 | -9/Materials | Central database locked down 4088 | -9/Materials | Build established: Tank 4149 | -9/Materials | First assault squad dispatched 4256 | -9/Materials | Destroyed 7 combat bots 4874 | -9/Materials | Learned 4 Recycling zone layouts 4948 | -9/Materials | Learned location of 1 exit from Recycling 5014 | -9/Materials | Learned 2 Storage zone layouts 5116 | -9/Materials | Learned location of Zion (-7) 5142 | -9/Materials | Entered Mines 5216 | -9/Mines | Learned Materials terminal intel 5254 | -9/Mines | Discovered exit to Materials (range 15) 5348 | -9/Mines | Discovered exit to Materials (range 7) 5359 | -9/Mines | Received a Rocket Launcher from a helpful Derelict 5431 | -9/Mines | Assembled infested the area 5829 | -9/Mines | Received a Mining Laser from a helpful Derelict 5904 | -9/Mines | Found a hidden stash of uninstalled traps 5941 | -9/Mines | Deemed a non-threat by the Exiles lab entrance 5941 | -9/Mines | Discovered new exit (range 5) 6177 | -9/Mines | Entered Exiles 6218 | -9/Exiles | Met 8R-AWN 6243 | -9/Exiles | Met EX-HEX 6287 | -9/Exiles | Met EX-BIN 6305 | -9/Exiles | Aligned with FarCom system 6306 | -9/Exiles | Given EX-Vault access code 6341 | -9/Exiles | Opened EX-Vault 6352 | -9/Exiles | Found Longsword +1 6357 | -9/Exiles | Found Supersonic Drone Bay 6362 | -9/Exiles | Found PSU Rigger 6394 | -9/Exiles | Warned to stay clear of 0b10 Research branches 6433 | -9/Exiles | Met EX-DEC 6534 | -9/Exiles | Build established: Mutant 6559 | -9/Exiles | Discovered new exit (range 12) 7240 | -9/Exiles | Attacked by the Exiles 7296 | -9/Exiles | Core integrity fell below 50% 7381 | -9/Exiles | Destroyed 8R-AWN 7390 | -9/Exiles | Found 8R-AWN's Boregun 7399 | -9/Exiles | Found AS-neutralizer No. 17b 7406 | -9/Exiles | Lost 4 parts (1n2u1w) 7465 | -9/Exiles | Stole three prototypes: Longsword +1, Supersonic Drone Bay, PSU Rigger 7465 | -9/Exiles | Entered Mines 7639 | -8/Mines | Discovered exit to Materials (range 9) 7737 | -8/Mines | Core integrity fell below 20% 7880 | -8/Mines | Build established: Skirmisher 8219 | -8/Mines | Discovered exit to Materials (range 7) 8346 | -8/Mines | Entered Materials 8346 | -8/Materials | Evolved 2 slots: Weapon x2 8347 | -8/Materials | Identified exit to Storage 8348 | -8/Materials | Loaded intel: 12 terminal locations 8349 | -8/Materials | Loaded intel: 1 garrison access location 8461 | -8/Materials | Destroyed 9 combat bots 9542 | -8/Materials | Repaired Arm. Wheel 9946 | -8/Materials | First assault squad dispatched 9992 | -8/Materials | Build established: Tank 10072 | -8/Materials | Lost 3 parts (1u2w) 10133 | -8/Materials | Core integrity fell below 50% 10150 | -8/Materials | Discovered new exit (range 11) 10167 | -8/Materials | Identified exit to Garrison 10167 | -8/Materials | Entered Garrison 10189 | -8/Garrison | Installed Relay Interface Framework 10271 | -8/Garrison | Triggered checkpoint 10322 | -8/Garrison | Garrison Relay disabled 10355 | -8/Garrison | Build established: Mutant 10383 | -8/Garrison | Spotted B-75 Beast 10388 | -8/Garrison | Core integrity fell below 20% 10397 | -8/Garrison | Destroyed by B-75 Beast with Heavy Plasma Cannon Last Messages --------------- 10343_ Acquired Relay Coupler [NC]. 10349_ Connecting with Garrison Terminal... >>Access(Emergency) Found 38 emergency access points. Map updated. 10365_ ALERT: Dispatching investigation squad to Materials. 10367_ Acquired Tesla Rifle. 10382_ Y-45 Defender springs to life. 10384_ Jacked Y-45 Defender... >>overwrite_iff Rewriting IFF filter. 10384_ Y-45 Defender destroyed. 10385_ Acquired 3 matter. 10389_ Jacked Y-45 Defender... >>overwrite_iff Rewriting IFF filter. 10391_ Rnf. Fission Core destroyed. 10391_ Machine disabled. 10392_ Chain reaction triggered in Rnf. Deuterium Engine. 10394_ Med. Treads destroyed. Map ----- +----------------------------------------------------+ | | | | | | | | | | | | | | | | | | | | | | | | | | | | | | | | | | | | | | | | | | | ?????????????????????????????????????????????????? | | ?????????????????????????????????????????????????? | | ????????????????????############?????????????????? | | ????????????????????#""""""""""#?????????????????? | | ????????????????????#" "|@!["""#?????????????????? | | ????????????????????#"" Y ""#?????????????????? | | ????????????????????#"* %* ]"#?????????????????? | | ????????????????????#"! ;BB# ["#?????????????????? | | ????????????????????#"! ;BB; ="#?????????????????? | | ????????????????????#"! # ; !"#?????????????????? | | ????????????????????#"! #### !"#?????????????????? | | ????????????????????#" ="#?????????????????? | | ????????????????????#"" ""#?????????????????? | | ????????????????????### ###?????????????????? | | ??????????????????????# #???????????????????? | | ??????????????????????# #####???????????????????? | | ??????????????????????#"+#???????????????????????? | | ????????????????????### ##??????????????????????? | | ????????????????????#"# T#??????????????????????? | | ????????????????????#" ##??????????????????????? | | ????????????????????# #???????????????????????? | | ????????????????????#" #???????????????????????? | | ????????????????????#"# #???????????????????????? | | ????????????????????### #???????????????????????? | | ??????????????????????# #???????????????????????? | | ??????????????????????# #???????????????????????? | | ????????????????????### #???????????????????????? | | ????????????????????# #???????????????????????? | | ????????????????????+ #???????????????????????? | +----------------------------------------------------+ Best States ------------- Heat Dissipation 57 Energy Generation 19 Energy Capacity 310 Matter Stores 300 Matter Capacity 300 Sight Range 20 Robot Scan Range 20 Terrain Scan Range 16 Terrain Scan Density 10 ECM Strength 1 Armor Coverage 600 Evasion (%) 50 Recoil Reduction 4 Offensive Hacking 10 Relay Coupler Types 1 Relay Coupler Value 9 Authchip Count 4 Item Schematics ----------------- Exp. Sensor Array | -9/Materials | Scanalyzed Plasma Cutter | -9/Materials | Scanalyzed Arm. Wheel | -9/Materials | Scanalyzed Datajack | -9/Materials | Scanalyzed ECM Suite | -9/Materials | Scanalyzed Aluminum Leg | -9/Materials | Extracted Weapon Shielding | -9/Materials | Extracted Lrg. Matter Pod | -9/Materials | Extracted Tractor Beam | -9/Materials | Extracted Hvy. Ion Engine | -9/Materials | Extracted Minigun | -9/Materials | Scanalyzed Hvy. EM Pulse Gun | -9/Materials | Extracted Cooling System | -9/Materials | Extracted Adv. Visual Processing Unit | -8/Materials | Scanalyzed Hardlight Generator | -8/Materials | Scanalyzed Rnf. Fission Core | -8/Materials | Scanalyzed Recoil Stabilizer | -8/Materials | Scanalyzed Autogun | -8/Materials | Extracted Imp. Terrain Scan Processor | -8/Materials | Extracted Nuclear Core | -8/Materials | Extracted Particle Charger | -8/Materials | Extracted Seismic Detector | -8/Materials | Scanalyzed Machine Analyzer | -8/Materials | Extracted Med. Storage Unit | -8/Materials | Extracted Robot Schematics ------------------ O-16 Technician | -10/Materials | Hacked M-13 Machinist | -10/Materials | Hacked Fabricated ------------ Nothing Alien Tech Used ----------------- None Achievements -------------- None Challenges ------------ None Game ------ Seed DisruptorSlugLauncher Manual? 0 Play Time 01:21:35 Cumulative 180.6 hours Start 2025.03.15 @ 22:06:23 End 2025.03.15 @ 23:26:09 Sessions 1 Manual Loads 0 Difficulty Rogue Special Mode None Game No. 90 Rogue 90 Adventurer 0 Explorer 0 Win Type - Total 0 Types 0/0/0/0/0/0/0/0/0 Lore% 53 Gallery% 71 Achievement% 57 Wizard Run 0 Options --------- Layout 0 ASCII 0 Keyboard 0 Movement Mouse Keybinds 0 Fullscreen 1 Font 24/Smallcaps Map View 183x50 Zoom Use 0% Tactical HUD 1 Map Filters NONE Filters NONE Steam 0 RUN: fc86222e-8fa6-41f6-9a2c-ec1714eb3e09